fUST/lending_fUST_20250828
["ID","MTS","AMOUNT","RATE_DAILY","PERIOD"]
[381763835,1756335064832,-151.0,0.00022465,7]
[381763836,1756335064842,-544.15,0.00022465,2]
[381763837,1756335064851,-151.0,0.00022465,7]
[381763838,1756335064860,-596.5,0.00022465,2]
[381763839,1756335064870,-480.0,0.00022465,2]
[381763840,1756335064879,-480.0,0.00022465,2]
[381763841,1756335064888,-151.0,0.00022465,7]
[381763842,1756335064897,-480.0,0.00022465,2]
[381763843,1756335064906,-151.0,0.00022465,7]
[381763844,1756335064915,-480.0,0.00022465,2]
[381763845,1756335064924,-151.0,0.00022465,7]
[381763846,1756335064934,-526.65,0.00022465,2]
[381763847,1756335064944,-485.70543418,0.00022465,2]
[381763848,1756335064954,-480.0,0.00022465,2]
[381763849,1756335064963,-545.31878606,0.00022465,2]
[381763850,1756335064972,-480.0,0.00022465,2]
[381763851,1756335064981,-380.78345748,0.00022465,2]
[381763852,1756335064990,-480.0,0.00022465,2]
[381763853,1756335065000,-480.0,0.00022465,2]
[381763854,1756335065011,-480.0,0.00022465,2]
[381763855,1756335065020,-480.0,0.00022465,2]
[381763856,1756335065029,-480.0,0.00022465,2]
[381763857,1756335065039,-480.0,0.00022465,2]
[381763858,1756335065048,-1692.39,0.00022465,2]
[381763859,1756335065057,-480.0,0.00022465,2]
[381763860,1756335065066,-480.0,0.00022465,2]
[381763861,1756335065075,-480.0,0.00022465,2]
[381763862,1756335065084,-480.0,0.00022465,2]
[381763863,1756335065094,-1209.93,0.00022465,2]
[381763864,1756335065103,-480.0,0.00022465,2]
[381763865,1756335065112,-480.0,0.00022465,2]
[381763866,1756335065121,-480.0,0.00022465,2]
[381763867,1756335065130,-480.0,0.00022465,2]
[381763868,1756335065139,-480.0,0.00022465,2]
[381763869,1756335065148,-634.82,0.00022465,2]
[381763870,1756335065158,-480.0,0.00022465,2]
[381763871,1756335065167,-600.0,0.00022465,2]
[381763872,1756335065176,-579.82,0.00022465,2]
[381763873,1756335065185,-480.0,0.00022465,2]
[381763874,1756335065194,-480.0,0.00022465,2]
[381763875,1756335065203,-1085.83,0.00022465,2]
[381763876,1756335065213,-481.51,0.00022465,2]
[381763877,1756335065222,-480.0,0.00022465,2]
[381763878,1756335065232,-208.267351,0.00022465,7]
[381763879,1756335065243,-480.0,0.00022465,2]
[381763880,1756335065252,-480.0,0.00022465,2]
[381763881,1756335065261,-208.267351,0.00022465,7]
[381763882,1756335065271,-208.267351,0.00022465,7]
[381763883,1756335065280,-208.267345,0.00022465,7]
[381763884,1756335065289,-480.0,0.00022465,2]
[381763885,1756335065298,-480.0,0.00022465,2]
[381763886,1756335065307,-480.0,0.00022465,2]
[381763887,1756335065317,-484.69,0.00022465,2]
[381763888,1756335065326,-480.0,0.00022465,2]
[381763889,1756335065336,-449.11489423,0.00022465,2]
[381763890,1756335065345,-480.0,0.00022465,2]
[381763891,1756335065354,-480.0,0.00022465,2]
[381763892,1756335065363,-1175.1,0.00022465,2]
[381763893,1756335065372,-480.0,0.00022465,2]
[381763894,1756335065381,-480.0,0.00022465,2]
[381763895,1756335065391,-480.0,0.00022465,2]
[381763896,1756335065406,-480.0,0.00022465,2]
[381763897,1756335065416,-480.0,0.00022465,2]
[381763898,1756335065425,-534.34,0.00022465,2]
[381763899,1756335065437,-480.0,0.00022465,2]
[381763900,1756335065447,-480.0,0.00022465,2]
[381763901,1756335065455,-481.84083818,0.00022465,2]
[381763902,1756335065466,-480.0,0.00022465,2]
[381763903,1756335065476,-480.0,0.00022465,2]
[381763904,1756335065486,-480.0,0.00022465,2]
[381763905,1756335065496,-480.0,0.00022465,2]
[381763906,1756335065505,-628.78,0.00022465,2]
[381763907,1756335065514,-480.0,0.00022465,2]
[381763908,1756335065524,-480.0,0.00022465,2]
[381763909,1756335065533,-480.0,0.00022465,2]
[381763910,1756335065542,-480.0,0.00022465,2]
[381763911,1756335065551,-480.0,0.00022465,2]
[381763912,1756335065560,-1324.23,0.00022465,2]
[381763913,1756335065570,-505.35,0.00022465,2]
[381763914,1756335065579,-559.11,0.00022465,2]
[381763915,1756335065589,-480.0,0.00022465,2]
[381763916,1756335065598,-4378.96,0.00022465,2]
[381763917,1756335065607,-480.0,0.00022465,2]
[381763918,1756335065616,-700.78,0.00022465,2]
[381763919,1756335065625,-480.0,0.00022465,2]
[381763920,1756335065635,-480.0,0.00022465,2]
[381763921,1756335065644,-480.0,0.00022465,2]
[381763922,1756335065653,-480.0,0.00022465,2]
[381763923,1756335065662,-480.0,0.00022465,2]
[381763924,1756335065671,-480.0,0.00022465,2]
[381763925,1756335065682,-480.0,0.00022465,2]
[381763926,1756335065690,-707.0,0.00022465,2]
[381763927,1756335065699,-480.0,0.00022465,2]
[381763928,1756335065708,-480.0,0.00022465,2]
[381763929,1756335065717,-416.26625217,0.00022465,2]
[381763930,1756335065726,-480.0,0.00022465,2]
[381763931,1756335065736,-480.0,0.00022465,2]
[381763932,1756335065745,-480.0,0.00022465,2]
[381763933,1756335065754,-268.61771577,0.00022465,2]
[381763934,1756335065763,-480.0,0.00022465,2]
[381763935,1756335065773,-480.0,0.00022465,2]
[381763936,1756335065782,-480.0,0.00022465,2]
[381763937,1756335065791,-527.52,0.00022465,2]
[381763938,1756335065800,-480.0,0.00022465,2]
[381763939,1756335065810,-480.0,0.00022465,2]
[381763940,1756335065819,-480.0,0.00022465,2]
[381763941,1756335065828,-480.0,0.00022465,2]
[381763942,1756335065837,-480.0,0.00022465,2]
[381763943,1756335065846,-883.2,0.00022465,2]
[381763944,1756335065855,-1419.76,0.00022465,2]
[381763945,1756335065865,-2255.73,0.00022465,2]
[381763946,1756335065874,-1169.17,0.00022465,2]
[381763947,1756335065884,-480.0,0.00022465,2]
[381763948,1756335065893,-480.0,0.00022465,2]
[381763949,1756335065902,-206.03083,0.00022465,7]
[381763950,1756335065911,-206.03083,0.00022465,7]
[381763951,1756335065920,-480.0,0.00022465,2]
[381763952,1756335065931,-959.78,0.00022465,2]
[381763953,1756335065940,-609.005187,0.00022465,7]
[381763954,1756335065949,-206.03083,0.00022465,7]
[381763955,1756335065958,-480.0,0.00022465,2]
[381763956,1756335065967,-480.0,0.00022465,2]
[381763957,1756335065977,-609.005187,0.00022465,7]
[381763958,1756335065986,-206.030838,0.00022465,7]
[381763959,1756335065996,-609.005187,0.00022465,7]
[381763960,1756335066006,-480.0,0.00022465,2]
[381763961,1756335066015,-480.0,0.00022465,2]
[381763962,1756335066024,-609.005182,0.00022465,7]
[381763963,1756335066033,-749.79,0.00022465,2]
[381763964,1756335066043,-480.0,0.00022465,2]
[381763965,1756335066052,-480.0,0.00022465,2]
[381763966,1756335066061,-480.0,0.00022465,2]
[381763967,1756335066071,-689.52,0.00022465,2]
[381763968,1756335066080,-151.0,0.00022465,7]
[381763969,1756335066089,-480.0,0.00022465,2]
[381763970,1756335066098,-671.13,0.00022465,2]
[381763971,1756335066107,-1904.20986198,0.00022465,2]
[381763972,1756335066116,-1174.2,0.00022465,2]
[381763973,1756335066125,-918.32,0.00022465,2]
[381763974,1756335066135,-715.37,0.00022465,2]
[381763975,1756335066144,-480.0,0.00022465,2]
[381763976,1756335066155,-480.0,0.00022465,2]
[381763977,1756335066164,-151.0,0.00022465,7]
[381763978,1756335066173,-480.0,0.00022465,2]
[381763979,1756335066183,-480.0,0.00022465,2]
[381763980,1756335066193,-480.0,0.00022465,2]
[381763981,1756335066206,-212.456098,0.00022465,7]
[381763982,1756335066218,-480.0,0.00022465,2]
[381763983,1756335066227,-480.0,0.00022465,2]
[381763984,1756335066236,-480.0,0.00022465,2]
[381763985,1756335066245,-588.6,0.00022465,2]
[381763986,1756335066254,-483.58,0.00022465,2]
[381763987,1756335066263,-480.0,0.00022465,2]
[381763988,1756335066272,-606.05,0.00022465,2]
[381763989,1756335066282,-480.0,0.00022465,2]
[381763990,1756335066291,-480.0,0.00022465,2]
[381763991,1756335066301,-480.0,0.00022465,2]
[381763992,1756335066310,-1172.95,0.00022465,2]
[381763993,1756335066319,-592.73,0.00022465,2]
[381763994,1756335066328,-480.0,0.00022465,2]
[381763995,1756335066337,-480.0,0.00022465,2]
[381763996,1756335066346,-480.0,0.00022465,2]
[381763997,1756335066356,-480.0,0.00022465,2]
[381763998,1756335066365,-2463.21,0.00022465,2]
[381763999,1756335066373,-480.0,0.00022465,2]
[381764000,1756335066382,-480.0,0.00022465,2]
[381764001,1756335066392,-480.0,0.00022465,2]
[381764002,1756335066404,-480.0,0.00022465,2]
[381764003,1756335066414,-480.0,0.00022465,2]
[381764004,1756335066423,-480.0,0.00022465,2]
[381764005,1756335066432,-151.0,0.00022465,7]
[381764006,1756335066443,-480.0,0.00022465,2]
[381764007,1756335066453,-480.0,0.00022465,2]
[381764008,1756335066462,-480.0,0.00022465,2]
[381764009,1756335066474,-480.0,0.00022465,2]
[381764010,1756335066484,-747.33,0.00022465,2]
[381764011,1756335066493,-485.25,0.00022465,2]
[381764012,1756335066502,-480.0,0.00022465,2]
[381764013,1756335066512,-335.17755488,0.00022465,2]
[381764014,1756335066521,-480.0,0.00022465,2]
[381764015,1756335066530,-1507.72,0.00022465,2]
[381764016,1756335066540,-480.0,0.00022465,2]
[381764017,1756335066549,-1508.54,0.00022465,2]
[381764018,1756335066559,-480.0,0.00022465,2]
[381764019,1756335066568,-1450.14,0.00022465,2]
[381764020,1756335066578,-480.0,0.00022465,2]
[381764021,1756335066587,-480.0,0.00022465,2]
[381764022,1756335066596,-480.0,0.00022465,2]
[381764023,1756335066605,-480.0,0.00022465,2]
[381764024,1756335066615,-578.602754,0.00022465,7]
[381764025,1756335066624,-480.0,0.00022465,2]
[381764026,1756335066635,-480.0,0.00022465,2]
[381764027,1756335066644,-578.602754,0.00022465,7]
[381764028,1756335066653,-480.0,0.00022465,2]
[381764029,1756335066663,-578.602754,0.00022465,7]
[381764030,1756335066672,-561.74,0.00022465,2]
[381764031,1756335066683,-590.98,0.00022465,2]
[381764032,1756335066691,-480.0,0.00022465,2]
[381764033,1756335066700,-587.56,0.00022465,2]
[381764034,1756335066710,-2968.407848,0.00022465,7]
[381764035,1756335066719,-511.29,0.00022465,2]
[381764036,1756335066728,-480.0,0.00022465,2]
[381764037,1756335066737,-578.602746,0.00022465,7]
[381764038,1756335066746,-480.0,0.00022465,2]
[381764039,1756335066755,-2968.407848,0.00022465,7]
[381764040,1756335066765,-836.08643,0.00022465,7]
[381764041,1756335066774,-751.64,0.00022465,2]
[381764042,1756335066783,-2968.407848,0.00022465,7]
[381764043,1756335066792,-151.0,0.00022465,7]
[381764044,1756335066802,-480.0,0.00022465,2]
[381764045,1756335066812,-151.0,0.00022465,7]
[381764046,1756335066822,-480.0,0.00022465,2]
[381764047,1756335066832,-480.0,0.00022465,2]
[381764048,1756335066841,-836.08643,0.00022465,7]
[381764049,1756335066851,-480.0,0.00022465,2]
[381764050,1756335066860,-2968.40784782,0.00022465,7]
[381764051,1756335066869,-480.0,0.00022465,2]
[381764052,1756335066879,-4487.71,0.00022465,2]
[381764053,1756335066888,-151.0,0.00022465,7]
[381764054,1756335066897,-151.0,0.00022465,7]
[381764055,1756335066906,-480.0,0.00022465,2]
[381764056,1756335066915,-836.08643,0.00022465,7]
[381764057,1756335066925,-151.0,0.00022465,7]
[381764058,1756335066935,-151.0,0.00022465,7]
[381764059,1756335066944,-480.0,0.00022465,2]
[381764060,1756335066953,-480.0,0.00022465,2]
[381764061,1756335066962,-836.086436,0.00022465,7]
[381764062,1756335066971,-480.0,0.00022465,2]
[381764063,1756335066980,-1246.05913,0.00022465,7]
[381764064,1756335066990,-480.0,0.00022465,2]
[381764065,1756335066999,-480.0,0.00022465,2]
[381764066,1756335067008,-480.0,0.00022465,2]
[381764067,1756335067018,-480.0,0.00022465,2]
[381764068,1756335067027,-480.0,0.00022465,2]
[381764069,1756335067036,-720.46,0.00022465,2]
[381764070,1756335067045,-1246.05913,0.00022465,7]
[381764071,1756335067054,-2704.82,0.00022465,2]
[381764072,1756335067063,-480.0,0.00022465,2]
[381764073,1756335067072,-480.0,0.00022465,2]
[381764074,1756335067082,-1246.05913,0.00022465,7]
[381764075,1756335067093,-480.0,0.00022465,2]
[381764076,1756335067102,-480.0,0.00022465,2]
[381764077,1756335067111,-480.0,0.00022465,2]
[381764078,1756335067121,-5599.83,0.00022465,2]
[381764079,1756335067130,-1246.059137,0.00022465,7]
[381764080,1756335067139,-151.0,0.00022465,7]
[381764081,1756335067148,-480.0,0.00022465,2]
[381764082,1756335067158,-480.0,0.00022465,2]
[381764083,1756335067168,-480.0,0.00022465,2]
[381764084,1756335067178,-151.0,0.00022465,7]
[381764085,1756335067187,-480.0,0.00022465,2]
[381764086,1756335067196,-151.0,0.00022465,7]
[381764087,1756335067205,-480.0,0.00022465,2]
[381764088,1756335067215,-480.0,0.00022465,2]
[381764089,1756335067223,-480.0,0.00022465,2]
[381764090,1756335067233,-480.0,0.00022465,2]
[381764091,1756335067243,-916.26,0.00022465,2]
[381764092,1756335067252,-1155.84,0.00022465,2]
[381764093,1756335067261,-480.0,0.00022465,2]
[381764094,1756335067270,-2582.86,0.00022465,2]
[381764095,1756335067279,-480.0,0.00022465,2]
[381764096,1756335067288,-480.0,0.00022465,2]
[381764097,1756335067297,-480.0,0.00022465,2]
[381764098,1756335067307,-480.0,0.00022465,2]
[381764099,1756335067316,-578.44869817,0.00022465,2]
[381764100,1756335067325,-1397.13,0.00022465,2]
[381764101,1756335067334,-1297.08,0.00022465,2]
[381764102,1756335067344,-480.0,0.00022465,2]
[381764103,1756335067353,-501.25,0.00022465,2]
[381764104,1756335067362,-480.0,0.00022465,2]
[381764105,1756335067371,-480.0,0.00022465,2]
[381764106,1756335067381,-480.0,0.00022465,2]
[381764107,1756335067390,-480.0,0.00022465,2]
[381764108,1756335067402,-480.0,0.00022465,2]
[381764109,1756335067411,-480.0,0.00022465,2]
[381764110,1756335067421,-480.0,0.00022465,2]
[381764111,1756335067430,-1703.25,0.00022465,2]
[381764112,1756335067440,-3900.44,0.00022465,2]
[381764113,1756335067449,-582.69,0.00022465,2]
[381764114,1756335067459,-660.64,0.00022465,2]
[381764115,1756335067469,-480.0,0.00022465,2]
[381764116,1756335067479,-480.0,0.00022465,2]
[381764117,1756335067488,-480.0,0.00022465,2]
[381764118,1756335067498,-480.0,0.00022465,2]
[381764119,1756335067507,-480.0,0.00022465,2]
[381764120,1756335067516,-480.0,0.00022465,2]
[381764121,1756335067525,-480.0,0.00022465,2]
[381764122,1756335067534,-900.81,0.00022465,2]
[381764123,1756335067543,-480.0,0.00022465,2]
[381764124,1756335067552,-2297.560338,0.00022465,7]
[381764125,1756335067561,-508.06,0.00022465,2]
[381764126,1756335067570,-480.0,0.00022465,2]
[381764127,1756335067579,-480.0,0.00022465,2]
[381764128,1756335067588,-2297.560338,0.00022465,7]
[381764129,1756335067597,-569.8783662,0.00022465,2]
[381764130,1756335068134,499.48499768,0.000199,2]
[381764131,1756335068940,-499.48499754,0.00021627,2]
[381764132,1756335068950,-195.15,0.00021907,10]
[381764133,1756335068960,-151.0,0.00021917,2]
[381764134,1756335068969,-480.0,0.00021917,2]
[381764135,1756335068979,-480.0,0.00021917,2]
[381764136,1756335068988,-480.55669122,0.00021917,2]
[381764137,1756335068998,-480.0,0.00021917,2]
[381764138,1756335069008,-480.0,0.00021917,2]
[381764139,1756335069018,-523.11357144,0.00021917,2]
[381764140,1756335069028,-480.0,0.00021917,2]
[381764141,1756335069036,-480.0,0.00021917,2]
[381764142,1756335069046,-480.0,0.00021917,2]
[381764143,1756335069055,-480.0,0.00021917,2]
[381764144,1756335069065,-480.0,0.00021917,2]
[381764145,1756335069074,-480.0,0.00021917,2]
[381764146,1756335069084,-480.0,0.00021917,2]
[381764147,1756335069093,-480.0,0.00021917,2]
[381764148,1756335069102,-480.0,0.00021917,2]
[381764149,1756335069112,-480.0,0.00021917,2]
[381764150,1756335069121,-480.0,0.00021917,2]
[381764151,1756335069130,-151.0,0.00022191,7]
[381764152,1756335069139,-480.0,0.00022191,2]
[381764153,1756335069148,-480.0,0.00022191,2]
[381764154,1756335069157,-481.77343998,0.00022191,2]
[381764155,1756335069167,-480.0,0.00022191,2]
[381764156,1756335069176,-480.0,0.00022191,2]
[381764157,1756335069187,-480.0,0.00022191,2]
[381764158,1756335069196,-480.0,0.00022191,2]
[381764159,1756335069205,-246.16340142,0.00022191,2]
[381764160,1756335069215,-480.0,0.00022191,2]
[381764161,1756335069224,-480.0,0.00022191,2]
[381764162,1756335069233,-306.91201488,0.00022191,2]
[381764163,1756335069245,-173.08798512,0.00022191,2]
[381764164,1756335069254,-289.974,0.00022383,2]
[381764165,1756335069263,-241.2516338,0.00022465,2]
[381764166,1756335069273,-480.0,0.00022465,2]
[381764167,1756335069282,-2297.560338,0.00022465,7]
[381764168,1756335069293,-480.0,0.00022465,2]
[381764169,1756335069302,-151.0,0.00022465,7]
[381764170,1756335069312,-443.11000103,0.00022465,2]
[381764171,1756335214324,466.18599782,0.000199,2]
[381764172,1756335388348,450.64646454,0.000199,2]
[381764173,1756335539419,165.116929,0.00013699,2]
[381764174,1756335563256,435.62491578,0.000199,2]
[381764179,1756335738581,421.10408537,0.000199,2]
[381764187,1756335914830,407.06728236,0.000199,2]
[381764188,1756335991126,-258.42327736,0.00021627,2]
[381764193,1756336090568,384.88426378,0.000199,2]
[381764198,1756336232256,-186.8030239,0.00020885,2]
[381764199,1756336232266,-384.88426359,0.00021627,2]
[381764200,1756336232275,-286.77912298,0.000217,2]
[381764201,1756336232284,-163.840736,0.000218,4]
[381764202,1756336232294,-3826.6848955,0.00021817,2]
[381764203,1756336232303,-237.7875329,0.00021817,2]
[381764204,1756336232312,-163.840736,0.00021879,3]
[381764205,1756336232322,-300.0,0.00021898,2]
[381764207,1756336232331,-300.0,0.00021898,2]
[381764208,1756336232340,-1200.0,0.00021899,2]
[381764209,1756336232350,-1000.0,0.000219,2]
[381764210,1756336232359,-500.0,0.000219,2]
[381764212,1756336232369,-179.71493225,0.000219,2]
[381764214,1756336232378,-285.06928048,0.000219,2]
[381764216,1756336232388,-500.0,0.000219,2]
[381764220,1756336232397,-500.0,0.000219,2]
[381764222,1756336232407,-500.0,0.000219,2]
[381764224,1756336232416,-500.0,0.000219,2]
[381764226,1756336232425,-500.0,0.000219,2]
[381764228,1756336232435,-50000.0,0.00021901,2]
[381764230,1756336232444,-151.0,0.00021904,2]
[381764232,1756336232453,-151.0,0.00021904,2]
[381764234,1756336232462,-194.72792766,0.00021904,2]
[381764236,1756336232472,-151.0,0.00021904,2]
[381764238,1756336232482,-151.0,0.00021904,2]
[381764240,1756336232492,-177.50560328,0.00021904,2]
[381764242,1756336232501,-304.68,0.00021907,3]
[381764244,1756336232510,-162.63,0.00021907,10]
[381764246,1756336232520,-813.16,0.00021907,10]
[381764248,1756336232529,-500.0,0.00021917,2]
[381764250,1756336232538,-480.0,0.00021917,2]
[381764251,1756336232547,-480.0,0.00021917,2]
[381764253,1756336232557,-480.0,0.00021917,2]
[381764255,1756336232566,-480.0,0.00021917,2]
[381764257,1756336232575,-480.0,0.00021917,2]
[381764259,1756336232584,-480.0,0.00021917,2]
[381764262,1756336232594,-480.0,0.00021917,2]
[381764264,1756336232604,-590.55,0.00021917,2]
[381764266,1756336232613,-482.26589214,0.00021917,2]
[381764268,1756336232622,-480.0,0.00021917,2]
[381764270,1756336232632,-117.58204625,0.00021917,2]
[381764928,1756336243735,-506.49646671,0.00021917,2]
[381764930,1756336243745,-362.41795375,0.00021917,2]
[381764932,1756336243754,-460.50118696,0.00021917,2]
[381764934,1756336243763,-603.3,0.00021917,2]
[381764936,1756336243774,-480.0,0.00021917,2]
[381764939,1756336243784,-548.93,0.00021917,2]
[381764941,1756336243794,-480.0,0.00021917,2]
[381764943,1756336243804,-763.68,0.00021917,2]
[381764945,1756336243813,-480.0,0.00021917,2]
[381764947,1756336243822,-480.0,0.00021917,2]
[381764949,1756336243832,-480.0,0.00021917,2]
[381764951,1756336243841,-549.29195571,0.00021917,2]
[381764953,1756336243850,-480.0,0.00021917,2]
[381764955,1756336243860,-480.0,0.00021917,2]
[381764957,1756336243869,-480.0,0.00021917,2]
[381764960,1756336243879,-480.0,0.00021917,2]
[381764962,1756336243888,-480.0,0.00021917,2]
[381764964,1756336243897,-207.85364291,0.00021917,2]
[381764966,1756336243909,-235.10190989,0.00021917,2]
[381764968,1756336243919,-480.0,0.00021917,2]
[381764970,1756336243928,-480.0,0.00021917,2]
[381764972,1756336243937,-480.0,0.00021917,2]
[381764974,1756336243947,-481.04281438,0.00021917,2]
[381764976,1756336243956,-480.0,0.00021917,2]
[381764978,1756336243966,-480.0,0.00021917,2]
[381764981,1756336243978,-735.08,0.00021917,2]
[381764983,1756336243987,-480.0,0.00021917,2]
[381764985,1756336243996,-480.0,0.00021917,2]
[381764987,1756336244005,-480.0,0.00021917,2]
[381764989,1756336244014,-480.0,0.00021917,2]
[381764991,1756336244024,-722.37,0.00021917,2]
[381764993,1756336244034,-480.0,0.00021917,2]
[381764995,1756336244043,-480.0,0.00021917,2]
[381764997,1756336244052,-480.0,0.00021917,2]
[381764999,1756336244061,-480.0,0.00021917,2]
[381765001,1756336244070,-480.0,0.00021917,2]
[381765003,1756336244079,-480.0,0.00021917,2]
[381765005,1756336244088,-480.0,0.00021917,2]
[381765007,1756336244097,-480.0,0.00021917,2]
[381765009,1756336244106,-480.0,0.00021917,2]
[381765011,1756336244116,-1022.52,0.00021917,2]
[381765013,1756336244125,-480.0,0.00021917,2]
[381765015,1756336244134,-480.0,0.00021917,2]
[381765017,1756336244144,-480.0,0.00021917,2]
[381765019,1756336244153,-1000.0,0.00021917,2]
[381765021,1756336244162,-480.0,0.00021917,2]
[381765023,1756336244171,-480.0,0.00021917,2]
[381765026,1756336244181,-480.0,0.00021917,2]
[381765028,1756336244191,-480.0,0.00021917,2]
[381765030,1756336244200,-480.0,0.00021917,2]
[381765032,1756336244210,-480.0,0.00021917,2]
[381765034,1756336244219,-480.0,0.00021917,2]
[381765036,1756336244227,-480.0,0.00021917,2]
[381765038,1756336244237,-480.0,0.00021917,2]
[381765040,1756336244256,-480.0,0.00021917,2]
[381765042,1756336244272,-204.3925277,0.00021917,2]
[381765044,1756336244282,-480.0,0.00021917,2]
[381765046,1756336244291,-480.0,0.00021917,2]
[381765048,1756336244300,-480.0,0.00021917,2]
[381765050,1756336244309,-480.0,0.00021917,2]
[381765052,1756336244318,-480.0,0.00021917,2]
[381765054,1756336244328,-480.0,0.00021917,2]
[381765056,1756336244337,-480.0,0.00021917,2]
[381765058,1756336244347,-480.0,0.00021917,2]
[381765060,1756336244356,-480.0,0.00021917,2]
[381765062,1756336244365,-480.0,0.00021917,2]
[381765064,1756336244375,-480.0,0.00021917,2]
[381765066,1756336244384,-480.0,0.00021917,2]
[381765068,1756336244394,-480.0,0.00021917,2]
[381765070,1756336244403,-480.0,0.00021917,2]
[381765072,1756336244412,-480.0,0.00021917,2]
[381765074,1756336244421,-480.0,0.00021917,2]
[381765076,1756336244431,-480.0,0.00021917,2]
[381765078,1756336244440,-480.0,0.00021917,2]
[381765080,1756336244450,-480.0,0.00021917,2]
[381765082,1756336244459,-480.0,0.00021917,2]
[381765084,1756336244470,-480.0,0.00021917,2]
[381765086,1756336244483,-480.0,0.00021917,2]
[381765089,1756336244493,-480.0,0.00021917,2]
[381765091,1756336244504,-480.0,0.00021917,2]
[381765093,1756336244514,-480.0,0.00021917,2]
[381765095,1756336244523,-480.0,0.00021917,2]
[381765097,1756336244533,-461.70192275,0.00021917,2]
[381765099,1756336244544,-280.55810464,0.00021917,2]
[381765101,1756336244554,-480.0,0.00021917,2]
[381765103,1756336244564,-480.0,0.00021917,2]
[381765105,1756336244573,-480.0,0.00021917,2]
[381765107,1756336244582,-480.0,0.00021917,2]
[381765109,1756336244591,-480.0,0.00021917,2]
[381765110,1756336244600,-636.71,0.00021917,2]
[381765111,1756336244609,-480.0,0.00021917,2]
[381765112,1756336244620,-480.0,0.00021917,2]
[381765113,1756336244629,-480.0,0.00021917,2]
[381765114,1756336244639,-480.0,0.00021917,2]
[381765115,1756336244652,-480.0,0.00021917,2]
[381765116,1756336244661,-480.0,0.00021917,2]
[381765117,1756336244670,-480.0,0.00021917,2]
[381765118,1756336244679,-480.0,0.00021917,2]
[381765119,1756336244689,-502.97,0.00021917,2]
[381765120,1756336244699,-480.0,0.00021917,2]
[381765121,1756336244708,-480.0,0.00021917,2]
[381765123,1756336244717,-480.0,0.00021917,2]
[381765125,1756336244727,-480.0,0.00021917,2]
[381765127,1756336244739,-480.0,0.00021917,2]
[381765129,1756336244748,-480.0,0.00021917,2]
[381765131,1756336244757,-480.0,0.00021917,2]
[381765133,1756336244766,-480.0,0.00021917,2]
[381765135,1756336244777,-480.0,0.00021917,2]
[381765137,1756336244786,-626.97,0.00021917,2]
[381765139,1756336244796,-480.0,0.00021917,2]
[381765141,1756336244807,-480.0,0.00021917,2]
[381765143,1756336244816,-855.12,0.00021917,2]
[381765145,1756336244825,-480.0,0.00021917,2]
[381765147,1756336244833,-480.0,0.00021917,2]
[381765149,1756336244842,-480.0,0.00021917,2]